bitfinex-derivatives/quotes_SOLF0:USTF0_20260202
["timestamp","ask_amount","ask_price","bid_price","bid_amount"]
[1770062505172,285.98559891,103.96,103.87,40.75041306]
[1770062505377,134.7973,103.95,103.87,40.75041306]
[1770062505679,278.6,103.95,103.87,40.75041306]
[1770062505875,16.10809891,103.99,103.9,8.6692]
[1770062506078,16.10809891,103.99,103.91,40.76982669]
[1770062506276,294.86809891,103.99,103.91,40.76982669]
[1770062506476,16.10809891,103.99,103.91,40.76982669]
[1770062506673,294.78809891,103.99,103.91,40.76982669]
[1770062506876,134.7822,103.96,103.88,40.76982669]
[1770062507081,134.8178,103.94,103.85,321.36982669]
[1770062507282,413.6378,103.94,103.85,321.36982669]
[1770062507480,8.6676,103.93,103.85,321.36982669]
[1770062507878,8.6681,103.92,103.85,40.76982669]
[1770062508083,286.26559891,103.93,103.85,40.76982669]
[1770062508583,294.93279891,103.93,103.85,40.76982669]
[1770062508779,429.75379891,103.93,103.85,40.76982669]
[1770062509286,294.93279891,103.93,103.85,40.76982669]
[1770062509483,16.11279891,103.93,103.85,49.44322669]
[1770062509683,295.55279891,103.93,103.85,49.44322669]
[1770062510086,286.88559891,103.93,103.85,49.44322669]
[1770062510384,7.44559891,103.93,103.85,49.44322669]
[1770062510581,7.44559891,103.93,103.85,184.36662669]
[1770062510778,295.83149891,103.95,103.87,40.70823901]
[1770062512282,296.37149891,103.95,103.87,49.37993901]
[1770062512483,296.37149891,103.95,103.87,40.70823901]
[1770062512484,431.16749891,103.95,103.87,40.70823901]
[1770062512684,143.4753,103.94,103.85,40.71584312]
[1770062513188,431.37479891,103.93,103.85,40.71584312]
[1770062513483,142.26719891,103.93,103.85,40.71584312]
[1770062513783,280.44,103.92,103.85,40.71584312]
[1770062513990,289.1085,103.92,103.85,40.71584312]
[1770062514291,288.34559891,103.93,103.86,40.7213962]
[1770062514486,280.98,103.94,103.86,40.7213962]
[1770062514789,415.79,103.94,103.86,40.7213962]
[1770062514984,134.8212,103.93,103.86,40.7213962]
[1770062515183,7.44559891,103.93,103.86,40.7213962]
[1770062515788,134.796,103.95,103.88,40.72887927]
[1770062515789,7.44559891,103.95,103.88,40.72887927]
[1770062515991,288.74559891,103.97,103.89,40.72887927]
[1770062516282,423.51469891,103.97,103.89,40.72887927]
[1770062516489,7.41154954,103.96,103.89,40.72887927]
[1770062516688,142.19444954,103.96,103.89,40.72887927]
[1770062516885,8.6657,103.95,103.89,40.72887927]
[1770062517889,289.15154954,103.96,103.89,40.72887927]
[1770062518586,297.81624954,103.96,103.88,8.6708]
[1770062518787,297.81624954,103.96,103.86,175.6398026]
[1770062518788,7.41154954,103.94,103.86,49.4015026]
[1770062518989,7.41154954,103.94,103.86,40.7293026]
[1770062519187,7.41154954,103.94,103.83,134.941]
[1770062519188,8.669,103.91,103.83,40.7293026]
[1770062520292,8.669,103.91,103.83,49.4043026]
[1770062520491,8.669,103.91,103.83,40.7293026]
[1770062520891,8.669,103.91,103.83,49.4044026]
[1770062521087,425.829,103.93,103.84,40.73337106]
[1770062521293,289.75154954,103.93,103.85,40.73337106]
[1770062521794,69.41154954,103.95,103.87,40.73278926]
[1770062521993,282.28,103.96,103.88,49.40378926]
[1770062522190,7.41154954,103.97,103.88,40.73278926]
[1770062522386,142.20704954,103.95,103.86,40.73278926]
[1770062522684,142.20704954,103.95,103.86,49.40548926]
[1770062522685,424.54704954,103.95,103.86,49.40548926]
[1770062522889,424.54704954,103.95,103.84,414.0968]
[1770062522890,8.6679,103.92,103.84,40.73278926]
[1770062523390,7.41154954,103.93,103.84,49.40658926]
[1770062523391,8.6687,103.91,103.84,49.40658926]
[1770062523590,7.41154954,103.91,103.84,40.73278926]
[1770062523992,8.6705,103.89,103.84,40.73278926]
[1770062524294,282.3,103.92,103.84,40.73278926]
[1770062524691,142.20724954,103.95,103.86,40.73070901]
[1770062524893,290.05154954,103.95,103.86,40.73070901]
[1770062525395,290.07154954,103.95,103.88,8.6711]
[1770062525788,134.8102,103.94,103.86,49.40270901]
[1770062526196,7.41154954,103.91,103.83,40.72967013]
[1770062526388,134.8742,103.89,103.8,40.72967013]
[1770062526591,7.41154954,103.87,103.8,40.72967013]
[1770062526889,282.94,103.87,103.8,40.72967013]
[1770062527296,283.02,103.88,103.8,40.72967013]
[1770062527692,291.6919,103.88,103.8,175.71817013]
[1770062527996,283.02,103.88,103.81,40.70607438]
[1770062528195,7.41154954,103.89,103.82,40.70607438]
[1770062528891,283.5,103.9,103.83,8.6752]
[1770062529096,283.5,103.9,103.83,40.70607438]
[1770062529597,283.5,103.9,103.85,8.6736]
[1770062529989,283.5,103.9,103.83,40.70607438]
[1770062531295,283.5,103.9,103.84,8.6744]
[1770062532799,16.07934954,103.93,103.85,40.72888485]
[1770062532996,300.87934954,103.93,103.85,40.72888485]
[1770062533400,284.8,103.93,103.86,40.72888485]
[1770062533999,284.8,103.93,103.84,175.67076481]
[1770062534199,284.8,103.93,103.85,40.73416481]
[1770062534399,292.21154954,103.93,103.85,40.73416481]
[1770062535102,8.6687,103.91,103.85,49.40746481]
[1770062536394,428.05464954,103.93,103.83,278.78]
[1770062536597,134.8603,103.9,103.82,40.73984206]
[1770062536806,7.41154954,103.89,103.82,40.73984206]
[1770062537003,134.8603,103.9,103.82,40.73984206]
[1770062537402,420.6003,103.9,103.82,40.73984206]
[1770062537704,7.41154954,103.89,103.8,40.69798789]
[1770062537901,293.21154954,103.89,103.8,175.68668789]
[1770062538299,8.6715,103.88,103.81,8.6769]
[1770062538600,293.21154954,103.89,103.81,8.6769]
[1770062538804,428.08514954,103.89,103.81,8.6769]
[1770062539198,8.6731,103.86,103.8,40.69798789]
[1770062540403,8.6731,103.86,103.8,49.37578789]
[1770062541207,7.41154954,103.85,103.77,40.71354911]
[1770062542206,7.41154954,103.83,103.77,40.71354911]
[1770062542911,286.28,103.84,103.77,40.71354911]
[1770062543310,294.11154954,103.85,103.77,40.71354911]
[1770062543513,8.6754,103.83,103.77,40.71354911]
[1770062543811,16.08694954,103.83,103.77,40.71354911]
[1770062544212,8.6764,103.82,103.77,40.71354911]
[1770062544411,286.84,103.84,103.77,40.71354911]
[1770062546317,295.5147,103.84,103.78,8.6792]
[1770062546516,294.97154954,103.87,103.79,40.71551297]
[1770062546810,7.41154954,103.87,103.8,40.71551297]
[1770062548109,7.41154954,103.87,103.77,40.70154375]
[1770062548110,142.31374954,103.87,103.77,40.70154375]
[1770062548311,7.41154954,103.85,103.77,175.72794375]
[1770062548505,7.41154954,103.85,103.78,40.70154375]
[1770062548712,288.14,103.86,103.8,40.70154375]
[1770062549213,288.14,103.86,103.81,8.6769]
[1770062549609,16.08354954,103.87,103.81,8.6769]
[1770062550009,8.6728,103.86,103.8,49.37924375]
[1770062550210,134.913,103.86,103.77,40.72751658]
[1770062550509,7.41154954,103.85,103.77,40.72751658]
[1770062550810,8.6745,103.84,103.78,8.6794]
[1770062551512,8.6753,103.83,103.78,8.6794]
[1770062552110,8.6745,103.84,103.78,8.6794]
[1770062553715,304.42524954,103.85,103.78,40.75100315]
[1770062553917,295.75154954,103.85,103.78,40.75100315]
[1770062554212,295.75154954,103.85,103.75,175.80470315]
[1770062554213,7.41154954,103.83,103.75,175.80470315]
[1770062554416,8.6761,103.83,103.77,49.43070315]
[1770062554618,295.75154954,103.85,103.77,40.75100315]
[1770062555216,16.08594954,103.85,103.79,8.6783]
[1770062556116,298.353,103.86,103.8,49.43046482]
[1770062556312,8.673,103.86,103.8,49.43046482]
[1770062557623,8.6738,103.85,103.8,49.43046482]
[1770062557817,8.6738,103.85,103.8,40.75296482]
[1770062558616,136.56397765,103.88,103.8,40.75296482]
[1770062558822,290.96,103.89,103.82,8.6761]
[1770062559026,298.37154954,103.89,103.81,40.77689776]
[1770062559418,7.41154954,103.93,103.84,40.77689776]
[1770062559616,134.7978,103.95,103.87,40.77863799]
[1770062559617,7.41154954,103.95,103.87,40.77863799]
[1770062559815,8.6645,103.96,103.89,49.44863799]
[1770062560115,7.41154954,103.95,103.87,40.77863799]
[1770062560320,7.41154954,103.93,103.85,286.5332]
[1770062560521,7.41154954,103.93,103.85,49.45183799]
[1770062561121,298.65154954,103.93,103.86,49.45143799]
[1770062561425,291.24,103.93,103.86,40.77863799]
[1770062562023,7.41154954,103.95,103.86,40.77863799]
[1770062562222,8.667,103.93,103.87,8.6719]
[1770062562417,298.87154954,103.95,103.87,49.47149504]
[1770062563119,8.6662,103.94,103.87,49.47149504]
[1770062563424,433.94674954,103.95,103.87,49.47149504]
[1770062563627,7.41154954,103.93,103.85,8.6729]
[1770062563825,134.8353,103.92,103.84,40.80216263]
[1770062564023,299.41154954,103.91,103.84,40.80216263]
[1770062564818,7.41154954,103.89,103.82,277.74]
[1770062565119,7.41154954,103.89,103.81,40.80216263]
[1770062565325,16.08194954,103.89,103.83,8.6752]
[1770062566326,16.08194954,103.89,103.81,175.77516263]
[1770062566327,8.6712,103.88,103.82,40.80522581]
[1770062566522,7.41154954,103.89,103.79,58.47692511]
[1770062566523,142.28474954,103.89,103.79,58.47692511]
[1770062566725,7.41154954,103.87,103.79,58.47692511]
[1770062567123,8.6736,103.86,103.79,49.48352581]
[1770062567425,8.6736,103.86,103.79,40.80522581]
[1770062567626,8.6736,103.86,103.8,49.48291283]
[1770062568826,8.6736,103.86,103.8,40.80511283]
[1770062569223,7.41154954,103.87,103.8,40.80511283]
[1770062570426,7.41154954,103.85,103.77,58.50374873]
[1770062570629,7.41154954,103.83,103.77,40.83204943]
[1770062571032,299.89154954,103.83,103.74,58.50374873]
[1770062571230,142.36294954,103.83,103.74,58.50374873]
[1770062571523,301.1362,103.82,103.74,67.18654873]
[1770062571730,301.1362,103.82,103.74,40.83204943]
[1770062571731,7.41154954,103.81,103.74,40.83204943]
[1770062571934,300.01154954,103.83,103.76,40.83279828]
[1770062572127,134.9121,103.86,103.77,40.83279828]
[1770062572128,7.41154954,103.85,103.77,40.83279828]
[1770062572329,300.05154954,103.85,103.77,40.83279828]
[1770062572829,7.41154954,103.85,103.78,8.6788]
[1770062573030,7.41154954,103.87,103.8,175.82139828]
[1770062573232,300.25154954,103.89,103.8,175.82139828]
[1770062573428,308.92204954,103.89,103.8,40.83279828]
[1770062574124,300.25154954,103.89,103.82,40.805883]
[1770062574726,300.25154954,103.89,103.82,49.481783]
[1770062574931,7.41154954,103.91,103.82,40.805883]
[1770062575232,7.41154954,103.89,103.82,40.805883]
[1770062575432,7.41154954,103.89,103.82,49.481983]
[1770062576533,7.42038173,103.9,103.83,40.79013722]
[1770062576729,293.48,103.91,103.83,40.79013722]
[1770062577329,301.02038173,103.92,103.83,40.79013722]
[1770062578332,8.6687,103.91,103.84,8.6744]
[1770062579826,7.42038173,103.94,103.86,40.78871247]
[1770062580031,301.46038173,103.94,103.86,40.78871247]
[1770062580934,8.667,103.93,103.86,49.46121247]
[1770062581336,7.42038173,103.92,103.83,40.78871247]
[1770062581636,301.86038173,103.92,103.84,175.72331247]
[1770062581937,301.86038173,103.92,103.86,8.6727]
[1770062582331,294.44,103.92,103.87,8.6719]
[1770062582538,294.44,103.92,103.87,40.78947653]
[1770062582835,294.74,103.95,103.88,40.78947653]
[1770062583141,296.5546469,103.97,103.9,49.45887653]
[1770062583337,7.42038173,103.96,103.88,40.78947653]
[1770062584436,295.0,103.95,103.88,40.78947653]
[1770062585339,429.7968,103.95,103.88,40.78947653]
[1770062585537,295.0,103.95,103.88,40.78947653]
[1770062586038,16.08488173,103.96,103.89,49.44157038]
[1770062587243,8.6654,103.95,103.89,49.44157038]
[1770062587441,8.6654,103.95,103.89,40.77137038]
[1770062587639,142.20288173,103.96,103.87,49.44329639]
[1770062587935,7.42038173,103.96,103.87,40.77199639]
[1770062589136,8.6654,103.95,103.87,40.77199639]
[1770062589344,7.42038173,103.96,103.88,49.44239639]
[1770062589536,142.20288173,103.96,103.88,49.44239639]
[1770062590443,8.6663,103.94,103.88,49.44239639]
[1770062591540,8.6654,103.95,103.89,49.51042857]
[1770062591744,304.2054,103.95,103.89,49.51042857]
[1770062593244,1.6746469,103.97,103.89,40.84012857]
[1770062593448,142.16048173,104.0,103.91,40.85096657]
[1770062593651,143.83464525,104.0,103.91,40.85096657]
[1770062594345,8.663,103.98,103.92,49.52064483]
[1770062594942,8.662,103.99,103.92,49.52064483]
[1770062595240,8.662,103.99,103.93,8.667]
[1770062596542,7.42038173,103.98,103.9,40.85314539]
[1770062596738,7.42038173,103.96,103.87,40.85314539]
[1770062596943,142.20388173,103.96,103.87,40.85314539]
[1770062597142,8.6662,103.94,103.87,40.85314539]
[1770062597343,7.42038173,103.94,103.87,40.85314539]
[1770062597741,7.42038173,103.94,103.87,49.52494539]
[1770062597943,304.3461,103.95,103.87,40.85314539]
[1770062598143,8.6661,103.95,103.87,40.85314539]
[1770062598344,8.6661,103.95,103.85,134.9238]
[1770062598345,7.42038173,103.92,103.84,40.84359333]
[1770062598544,7.42038173,103.9,103.84,40.84359333]
[1770062598745,7.42038173,103.9,103.82,40.84359333]
[1770062599042,303.28038173,103.9,103.82,40.84359333]
[1770062599243,7.42038173,103.88,103.82,40.84359333]
[1770062600039,7.42038173,103.9,103.83,175.7938194]
[1770062600240,7.42038173,103.92,103.84,40.8455194]
[1770062601146,7.42038173,103.92,103.84,49.5198194]
[1770062601340,7.42038173,103.92,103.84,40.8455194]
[1770062602052,16.08828173,103.92,103.84,49.5199194]
[1770062603553,311.86828173,103.92,103.84,49.5199194]
[1770062603952,8.6687,103.91,103.84,49.5199194]
[1770062605248,303.20038173,103.92,103.85,8.6735]
[1770062605448,295.78,103.92,103.85,40.85967954]
[1770062605645,8.6678,103.93,103.85,40.85967954]
[1770062605849,305.0462,103.94,103.87,8.672]
[1770062606254,7.42038173,103.95,103.86,175.78722098]
[1770062606458,7.42038173,103.97,103.89,40.87662098]
[1770062606655,304.02038173,103.97,103.89,40.87662098]
[1770062606857,303.96038173,103.97,103.89,40.87662098]
[1770062607758,438.73018173,103.97,103.89,40.87662098]
[1770062608159,8.6654,103.95,103.89,40.87662098]
[1770062608550,142.21658173,103.95,103.86,40.87625481]
[1770062608757,297.38,103.94,103.86,40.87625481]
[1770062610262,142.21658173,103.95,103.86,40.87625481]
[1770062610463,8.6671,103.93,103.86,49.54905481]
[1770062610763,7.42038173,103.91,103.83,40.87447191]
[1770062610962,8.6703,103.89,103.83,49.54897191]
[1770062611564,298.02,103.9,103.84,8.6745]
[1770062612168,306.6895,103.9,103.84,8.6745]
[1770062612356,298.02,103.9,103.85,49.6654756]
[1770062612664,305.72038173,103.93,103.85,49.6654756]
[1770062613161,298.3,103.93,103.86,40.9919756]
[1770062613766,7.42038173,103.95,103.88,49.66697395]
[1770062614265,8.6678,103.92,103.86,49.66867395]
[1770062617364,7.42038173,103.93,103.87,49.67042946]
[1770062617569,298.72,103.94,103.87,49.67042946]
[1770062617870,7.42038173,103.93,103.87,40.99852946]
[1770062618164,8.6679,103.92,103.87,40.99852946]
[1770062618370,7.42038173,103.93,103.87,40.99852946]
[1770062618573,8.669,103.91,103.87,17.6716993]
[1770062619871,8.6679,103.92,103.87,17.6716993]
[1770062620073,441.28158173,103.93,103.87,17.6716993]
[1770062621165,8.669,103.91,103.87,17.6716993]
[1770062621771,7.42038173,103.91,103.85,17.6716993]
[1770062621969,301.44,103.9,103.84,17.6716993]
[1770062622272,7.42038173,103.89,103.84,17.6716993]
[1770062622767,7.42038173,103.87,103.83,17.6716993]
[1770062623072,309.56038173,103.87,103.82,17.73800936]
[1770062623270,7.42038173,103.83,103.74,40.99405443]
[1770062623477,134.9405,103.84,103.74,40.99405443]
[1770062623478,7.42038173,103.8,103.74,40.99405443]
[1770062624261,7.42038173,103.78,103.73,8.6834]
[1770062624464,7.42038173,103.78,103.72,40.97753998]
[1770062624465,309.60038173,103.78,103.72,40.97753998]
[1770062625670,302.18,103.78,103.72,40.97753998]
[1770062625874,7.42038173,103.81,103.74,40.91591383]
[1770062626473,16.09758173,103.81,103.74,40.91591383]
[1770062626665,7.42038173,103.81,103.74,40.91591383]
[1770062627766,7.42038173,103.77,103.71,49.63391834]
[1770062629768,303.26,103.78,103.72,49.63123796]
[1770062630367,303.26,103.78,103.72,40.94703796]
[1770062630672,320.51918173,103.79,103.72,40.94703796]
[1770062630967,320.51918173,103.79,103.72,49.63143796]
[1770062634678,320.51918173,103.79,103.73,8.6837]
[1770062634979,8.6778,103.81,103.74,40.9503331]
[1770062635278,7.42038173,103.8,103.74,49.6332331]
[1770062636174,16.09828173,103.8,103.74,40.9503331]
[1770062638180,16.09828173,103.8,103.73,8.6836]
[1770062638477,8.6787,103.79,103.72,49.60194232]
[1770062639474,7.43544795,103.78,103.72,40.91744232]
[1770062639976,316.2404,103.77,103.7,40.92252797]
[1770062640177,307.56,103.77,103.7,40.92252797]
[1770062640673,307.56,103.77,103.71,40.92252797]
[1770062641274,134.9973,103.8,103.7,135.1157]
[1770062641275,34.43655105,103.8,103.7,135.1157]
[1770062641470,7.43544795,103.77,103.69,135.1305]
[1770062641871,7.43544795,103.77,103.7,135.1194]
[1770062642074,43.11615105,103.78,103.7,135.1194]
[1770062642480,43.11615105,103.78,103.69,135.1305]
[1770062642983,34.44465765,103.8,103.72,135.0928]
[1770062643183,315.45544795,103.81,103.72,135.0928]
[1770062643581,349.9001056,103.81,103.72,135.0928]
[1770062643878,34.49077017,103.8,103.73,8.6829]
[1770062644080,34.49077017,103.8,103.72,135.092]
[1770062644274,34.49077017,103.8,103.75,8.6819]
[1770062644978,34.49077017,103.82,103.74,135.0633]
[1770062645183,7.43544795,103.83,103.74,135.0633]
[1770062645979,41.92616914,103.83,103.74,135.0633]
[1770062646284,34.49072119,103.82,103.73,408.4185]
[1770062646685,8.678,103.8,103.73,273.34]
[1770062646986,34.49072119,103.82,103.73,273.34]
[1770062647181,8.6771,103.81,103.73,273.34]
[1770062647481,34.49072119,103.82,103.74,135.0656]
[1770062647889,34.49054708,103.81,103.73,273.34]
[1770062648183,41.92599503,103.81,103.73,273.34]
[1770062649385,8.678,103.8,103.74,8.6823]
[1770062649580,41.92599503,103.81,103.74,8.6823]
[1770062649776,8.6786,103.8,103.74,8.6823]
[1770062650785,8.6787,103.79,103.73,8.6837]
[1770062651379,7.43544795,103.81,103.72,135.0914]
[1770062651584,41.9378464,103.83,103.74,135.0674]
[1770062652382,41.9378464,103.83,103.73,135.08]
[1770062652582,2.4093063,103.82,103.73,135.08]
[1770062652787,2.4093063,103.82,103.72,416.82684795]
[1770062652788,8.6777,103.81,103.74,8.6825]
[1770062652982,43.13212344,103.81,103.73,135.0804]
[1770062653688,43.13252344,103.8,103.72,409.3914]
[1770062654285,43.13252344,103.8,103.73,8.6829]
[1770062654988,34.45442344,103.8,103.73,135.0799]
[1770062655390,34.45442344,103.8,103.72,409.3914]
[1770062656391,43.13222344,103.8,103.74,8.6827]
[1770062657692,34.50788788,103.78,103.7,275.86]
[1770062657897,34.50788788,103.78,103.69,135.1267]
[1770062658490,45.5983458,103.77,103.69,135.1267]
[1770062658689,43.18828788,103.77,103.69,135.1267]
[1770062659084,45.59950831,103.76,103.68,410.9948]
[1770062659393,2.41042043,103.75,103.68,275.86]
[1770062659594,34.50788788,103.76,103.67,135.1496]
[1770062659790,2.4106862,103.75,103.67,135.1496]
[1770062659990,34.50788788,103.76,103.67,135.1496]
[1770062660187,2.41052263,103.75,103.67,135.1496]
[1770062660390,2.41052263,103.74,103.69,8.6868]
[1770062660590,8.6822,103.75,103.69,8.6868]
[1770062660793,2.41075174,103.74,103.69,8.6868]
[1770062660991,8.6822,103.75,103.69,8.6868]
[1770062661295,2.41075174,103.74,103.69,8.6868]
[1770062661596,8.6822,103.75,103.69,8.6868]
[1770062661797,2.41073438,103.74,103.69,8.6868]
[1770062661998,8.6822,103.75,103.69,8.6868]
[1770062662190,2.41073438,103.74,103.7,8.6861]
[1770062662392,41.94126045,103.79,103.7,135.1194]
[1770062662597,34.5058125,103.79,103.7,411.6794]
[1770062663095,34.5058125,103.78,103.7,276.56]
[1770062664296,43.1855125,103.78,103.71,8.6853]
[1770062664900,34.5058125,103.78,103.72,8.6844]
[1770062666093,34.51784753,103.8,103.73,8.6837]
[1770062666298,34.51784753,103.82,103.73,135.0794]
[1770062666797,34.51784753,103.82,103.74,135.0669]
[1770062666992,34.51784753,103.84,103.76,135.0345]
[1770062667293,34.51784753,103.86,103.79,8.6786]
[1770062667698,43.19074753,103.86,103.8,8.6777]
[1770062667896,34.51326817,103.88,103.8,134.989]
[1770062668398,34.51326817,103.91,103.82,134.9612]
[1770062668600,34.51326817,103.91,103.83,134.9492]
[1770062669098,34.51326817,103.9,103.82,277.34]
[1770062669296,34.51326817,103.89,103.8,134.989]
[1770062669500,34.51326817,103.89,103.81,277.4]
[1770062669799,34.55916063,103.87,103.78,277.46]
[1770062669998,34.55916063,103.87,103.78,412.4747]
[1770062670198,43.23126063,103.87,103.78,421.1534]
[1770062670498,43.23126063,103.87,103.78,412.4747]
[1770062671094,8.6711,103.89,103.8,134.9868]
[1770062671294,7.43544795,103.91,103.83,134.9472]
[1770062671595,34.55916063,103.93,103.86,134.9103]
[1770062671995,34.55916063,103.93,103.85,8.6732]
[1770062672196,41.99460858,103.93,103.85,8.6732]
[1770062673205,34.56733133,103.92,103.84,277.92]
[1770062673696,34.56733133,103.92,103.85,8.6736]
[1770062674094,43.23533133,103.92,103.84,277.92]
[1770062674297,50.67077928,103.92,103.84,277.92]
[1770062674498,34.58115091,103.91,103.83,8.6747]
[1770062674895,8.6705,103.89,103.82,278.26]
[1770062675103,42.01659886,103.9,103.82,286.936]
[1770062675302,42.01659886,103.9,103.82,413.2222]
[1770062675502,34.58115091,103.9,103.82,413.2222]
[1770062676107,34.58115091,103.9,103.84,8.6744]
[1770062676305,8.6693,103.91,103.84,8.6744]
[1770062676504,34.60961305,103.93,103.84,134.9362]
[1770062676806,34.60961305,103.95,103.87,134.8972]
[1770062677406,176.808861,103.98,103.88,134.8841]
[1770062677604,34.60961305,103.98,103.9,134.8587]
[1770062677904,34.60961305,103.98,103.91,8.6685]
[1770062678799,34.60961305,103.98,103.89,413.8515]
[1770062679000,34.60961305,103.98,103.89,287.6497]
[1770062679001,50.708161,103.98,103.89,287.6497]
[1770062679204,42.04970889,103.96,103.87,279.1]
[1770062679600,43.27996094,103.95,103.87,287.7714]
[1770062679905,178.07576094,103.95,103.87,279.1]
[1770062680504,43.27996094,103.95,103.87,279.1]
[1770062680703,7.43544795,103.96,103.88,134.8802]
[1770062680899,347.5038825,103.97,103.88,134.8802]
[1770062681203,347.5038825,103.97,103.89,8.6698]
[1770062681406,8.6625,103.99,103.89,134.8692]
[1770062681603,34.62210052,103.98,103.88,414.6002]
[1770062681910,34.62210052,103.98,103.89,8.6698]
[1770062681911,34.62210052,103.96,103.89,8.6698]
[1770062682101,176.83974847,103.96,103.88,279.72]
[1770062682301,176.83974847,103.96,103.86,134.9097]
[1770062682302,176.83974847,103.96,103.87,279.66]
[1770062682608,176.83974847,103.96,103.86,134.9104]
[1770062682805,176.83974847,103.96,103.86,414.6304]
[1770062683108,42.05754847,103.96,103.86,414.6304]
[1770062683307,8.6659,103.95,103.88,8.6711]
[1770062686105,8.6659,103.95,103.86,414.2304]
[1770062686302,34.62295909,103.93,103.86,279.32]
[1770062686603,34.62295909,103.93,103.84,134.927]
[1770062686809,8.6678,103.92,103.83,414.3419]
[1770062687107,16.10324795,103.92,103.83,414.3419]
[1770062688308,16.10324795,103.92,103.85,8.6734]
[1770062688808,34.61994769,103.96,103.88,134.8847]
[1770062689007,34.61994769,103.96,103.9,8.6694]
[1770062689507,8.6635,103.98,103.9,8.6694]
[1770062689716,8.6635,103.98,103.91,8.6686]
[1770062689910,43.28298765,103.98,103.91,8.6686]
[1770062690207,34.61948765,103.98,103.88,414.7047]
[1770062690407,8.6641,103.97,103.9,8.6687]
[1770062690613,34.61948765,103.98,103.9,8.6687]
[1770062690614,34.61948765,104.01,103.91,134.8459]
[1770062691112,43.27978765,104.01,103.94,8.6659]
[1770062692411,43.27978765,104.01,103.95,8.6652]
[1770062693009,42.05600053,104.04,103.96,8.6645]
[1770062693411,42.05600053,104.04,103.91,134.8459]
[1770062693412,34.62055258,103.99,103.91,134.8459]
[1770062693614,34.62055258,104.02,103.95,8.6651]
[1770062694311,8.6611,104.01,103.95,8.6651]
[1770062696912,34.62055258,104.02,103.96,8.6644]
[1770062697109,34.62055258,104.02,103.94,413.6469]
[1770062697110,303.08,104.04,103.94,413.6469]
[1770062697306,34.61097634,104.05,103.96,134.7802]
[1770062698316,8.6586,104.04,103.97,8.6629]
[1770062698708,34.62303787,104.04,103.97,8.6629]
[1770062699211,43.28183787,104.03,103.94,413.6469]
[1770062700014,43.25771534,104.02,103.96,8.6643]
[1770062700315,34.59801534,104.02,103.96,8.6643]
[1770062700514,34.59801534,104.02,103.94,278.84]
[1770062700911,34.59801534,104.01,103.92,134.8315]
[1770062701112,8.6621,103.99,103.92,8.667]
[1770062701314,8.6621,103.99,103.91,414.0363]
[1770062701510,43.2628333,103.99,103.91,279.2]
[1770062701711,8.6611,104.01,103.92,134.8313]
[1770062702015,43.2618333,104.01,103.93,134.8199]
[1770062702519,41.99871887,104.04,103.94,134.8064]
[1770062702814,41.99871887,104.04,103.95,134.7939]
[1770062703016,34.6007333,104.04,103.96,134.7811]
[1770062703411,309.73798557,104.06,103.99,8.662]
[1770062703617,344.33871887,104.06,103.96,134.7811]
[1770062704113,34.59692797,104.05,103.96,134.7811]
[1770062704516,309.73798557,104.06,103.95,421.79188557]
[1770062704517,43.25492797,104.04,103.95,134.7939]
[1770062704717,43.25492797,104.04,103.96,414.36]
[1770062705424,43.25582797,104.03,103.97,8.6636]
[1770062705617,34.59692797,104.02,103.94,134.8064]
[1770062706016,34.59692797,104.02,103.95,134.7939]
[1770062706316,34.59136942,104.04,103.96,134.7815]
[1770062706521,34.59136942,104.04,103.96,415.0215]
[1770062706725,345.36736942,104.07,103.98,134.7553]
[1770062706923,336.71136942,104.07,104.0,134.7289]
[1770062707122,34.59136942,104.07,104.0,134.7289]
[1770062707523,34.59136942,104.07,104.01,8.6603]
[1770062708020,34.59136942,104.07,103.98,280.46]
[1770062708219,8.6571,104.05,103.99,8.6612]
[1770062708414,43.22098534,104.05,103.99,8.6612]
[1770062709613,34.56388534,104.05,104.0,8.6611]
[1770062709815,43.23549111,104.07,104.0,8.6611]
[1770062710024,43.23549111,104.07,103.99,134.7414]
[1770062710332,34.57949111,104.07,104.02,8.6595]
[1770062711730,41.97747668,104.07,103.98,280.46]
[1770062712529,43.22112206,104.05,103.99,8.6619]
[1770062712726,43.22112206,104.05,103.97,281.48]
[1770062713425,16.05408557,104.07,103.98,134.7553]
[1770062713727,50.65633731,104.07,103.98,134.7553]
[1770062714029,43.25845174,104.06,103.98,134.7555]
[1770062714230,34.60225174,104.06,103.98,134.7555]